bitfinex/quotes_ETHUSD_20220220
["timestamp","ask_amount","ask_price","bid_price","bid_amount"]
[1645332048621,0.00353124,2692.0,2691.6,0.536]
[1645332049264,0.00353124,2692.0,2691.7,11.23]
[1645332049464,7.32,2692.1,2691.7,11.23]
[1645332049669,7.32,2692.1,2691.6,0.536]
[1645332049866,0.00353125,2691.9,2691.6,0.536]
[1645332050466,0.00353125,2691.9,2691.4,0.00218083]
[1645332050666,1.85935,2692.4,2691.2,0.536]
[1645332050866,2.85935,2692.4,2691.3,1.57931625]
[1645332051067,0.00353126,2691.9,2691.4,0.00218083]
[1645332051966,0.92969,2692.0,2691.3,4.42839533]
[1645332052170,0.00288395,2691.8,2691.3,4.42839533]
[1645332052566,0.00288395,2691.8,2691.4,3.7]
[1645332052815,0.00288395,2691.8,2691.5,3.5]
[1645332053215,3.03855,2692.4,2691.5,4.036]
[1645332053417,0.00353982,2691.8,2691.5,4.036]
[1645332053618,0.00353982,2691.8,2691.5,0.536]
[1645332054416,0.92962,2692.2,2691.5,0.536]
[1645332054618,0.92962,2692.2,2691.5,4.036]
[1645332054619,0.00353982,2691.8,2691.5,4.036]
[1645332054829,0.00353982,2691.8,2691.5,0.536]
[1645332055019,0.00353982,2691.8,2691.5,15.266]
[1645332055221,0.00353982,2691.8,2691.5,4.036]
[1645332055621,0.92955,2692.5,2691.5,4.036]
[1645332055822,0.00353982,2691.8,2691.5,4.036]
[1645332056022,0.00353982,2691.8,2691.6,11.23]
[1645332056223,0.00353982,2691.8,2691.7,15.266]
[1645332056467,0.00353982,2691.8,2691.7,15.566]
[1645332056667,1.1618,2692.9,2691.7,15.566]
[1645332056866,1.1618,2692.9,2692.0,11.23]
[1645332057065,0.0141571,2692.3,2692.1,4.036]
[1645332057266,0.0141571,2692.3,2692.1,0.536]
[1645332058068,10.0,2692.7,2691.7,4.22532419]
[1645332058267,0.00353975,2692.3,2691.9,11.23]
[1645332058468,0.00353975,2692.3,2692.0,11.766]
[1645332058767,0.00353975,2692.3,2692.1,0.536]
[1645332059070,0.01415686,2692.7,2692.1,0.536]
[1645332059267,1.04442359,2692.8,2692.1,1.72189185]
[1645332059470,0.00353975,2692.3,2692.1,0.536]
[1645332060422,1.00660726,2692.2,2691.7,0.536]
[1645332060626,1.00660726,2692.2,2691.4,0.00220947]
[1645332061018,0.92968,2692.1,2691.4,0.00220947]
[1645332061719,0.00353975,2692.3,2691.4,3.50220947]
[1645332061720,0.00353986,2691.9,2691.4,3.50220947]
[1645332061920,0.00353986,2691.9,2691.4,3.80220947]
[1645332062721,3.01375496,2692.3,2691.5,1.13770619]
[1645332062920,0.00353982,2691.8,2691.5,1.13770619]
[1645332063963,1.92958,2692.3,2691.4,4.0]
[1645332064165,1.92958,2692.3,2691.4,7.5]
[1645332064370,1.84727649,2692.3,2691.4,7.80220947]
[1645332064766,0.84727649,2692.3,2691.4,7.80220947]
[1645332065171,1.97755355,2692.3,2691.4,8.84253165]
[1645332066967,0.83311982,2692.3,2691.4,8.84253165]
[1645332067168,0.83311982,2692.3,2691.4,5.34253165]
[1645332067832,0.00287713,2692.0,2691.4,16.57253165]
[1645332068031,0.00287713,2692.0,2691.6,11.23]
[1645332068224,0.00287713,2692.0,2691.6,11.53]
[1645332068425,0.00287713,2692.0,2691.6,0.3]
[1645332068625,0.00287713,2692.0,2691.7,0.536]
[1645332068828,2.85905,2692.8,2691.7,1.136]
[1645332069026,0.00353984,2691.9,2691.7,1.136]
[1645332069226,0.00353984,2691.9,2691.7,0.536]
[1645332069430,0.00353984,2691.9,2691.5,0.93168826]
[1645332069431,0.00353984,2691.9,2691.5,0.00221826]
[1645332070029,0.08611616,2691.9,2691.4,3.5]
[1645332070228,0.08611616,2691.9,2690.9,0.00079999]
[1645332070229,52.12180464,2691.8,2691.5,1.826e-05]
[1645332070438,5.94262487,2691.6,2690.9,0.00079999]
[1645332070631,5.0,2691.2,2690.9,0.00079999]
[1645332070828,0.536,2691.1,2689.7,1.57995388]
[1645332071028,0.536,2691.1,2689.3,0.00888017]
[1645332071029,1.62211616,2691.1,2689.3,0.00888017]
[1645332071228,1.23045,2690.7,2689.4,1.58004578]
[1645332071464,1.0794056,2690.4,2689.5,1.06459656]
[1645332071673,1.0794056,2690.4,2689.6,1.58004578]
[1645332071870,1.0794056,2690.4,2689.5,1.06459656]
[1645332071871,2.0098349,2690.4,2689.5,1.06459656]
[1645332072271,2.0098349,2690.4,2689.3,2.8294]
[1645332072468,2.0098349,2690.4,2689.4,1.58012718]
[1645332072867,0.93039,2690.3,2689.4,1.58012718]
[1645332073469,0.93039,2690.3,2689.5,0.8591104]
[1645332073670,0.93039,2690.3,2689.6,1.58008844]
[1645332073871,0.93039,2690.3,2689.7,0.002209]
[1645332074773,0.93039,2690.3,2689.6,1.58008844]
[1645332075215,0.93039,2690.3,2689.9,0.00220888]
[1645332076016,0.93039,2690.3,2689.5,0.8591104]
[1645332076220,0.93039,2690.3,2690.0,0.0022088]
[1645332077220,0.93039,2690.3,2689.5,0.8591104]
[1645332077418,0.93039,2690.3,2690.0,0.00220876]
[1645332078320,0.93039,2690.3,2689.5,0.8591104]
[1645332080068,0.54933268,2690.4,2689.5,12.0891104]
[1645332080272,0.54933268,2690.4,2689.6,1.5799898]
[1645332080671,0.8430318,2690.5,2689.6,1.5799898]
[1645332081266,0.8430318,2690.5,2689.6,2.1159898]
[1645332081267,0.93025,2690.4,2689.6,2.1159898]
[1645332081466,0.93025,2690.4,2689.6,0.536]
[1645332081866,0.93025,2690.4,2689.7,1.57994994]
[1645332082267,0.93025,2690.4,2689.9,0.00220336]
[1645332083119,0.93025,2690.4,2689.7,1.57994994]
[1645332083423,0.93025,2690.4,2690.0,0.00220323]
[1645332083616,0.93025,2690.4,2689.6,0.536]
[1645332084018,0.93025,2690.4,2689.7,11.23]
[1645332084318,0.93025,2690.4,2689.6,0.536]
[1645332085217,0.93025,2690.4,2689.7,11.23]
[1645332085617,0.93025,2690.4,2689.6,0.536]
[1645332086473,0.93025,2690.4,2689.3,3.0151]
[1645332086672,0.93048,2690.0,2689.3,3.0151]
[1645332086872,0.93048,2690.0,2689.3,0.1857]
[1645332087676,0.85260846,2689.8,2689.3,0.1857]
[1645332087875,0.93048,2689.7,2689.3,0.1857]
[1645332088375,0.93048,2689.7,2689.4,0.00219822]
[1645332089177,0.93048,2689.7,2689.3,0.1857]
[1645332089580,0.93048,2689.7,2689.4,0.00219822]
[1645332090517,0.83048,2689.7,2689.2,0.536]
[1645332090819,0.83048,2689.7,2689.4,0.00219822]
[1645332091619,0.83048,2689.7,2689.2,0.536]
[1645332091817,0.83048,2689.7,2689.4,0.00219822]
[1645332092819,0.93038,2689.9,2689.2,11.766]
[1645332093026,1.1348,2690.2,2689.9,1.68537405]
[1645332093222,1.1348,2690.2,2690.0,0.536]
[1645332093520,3.21479997,2690.9,2690.0,0.536]
[1645332093521,0.13819997,2690.9,2690.0,12.066]
[1645332093722,0.13819997,2690.9,2690.0,0.536]
[1645332094168,0.13819997,2690.9,2690.4,1.06186358]
[1645332094371,0.93006,2691.0,2690.4,1.06186358]
[1645332094572,1.2087,2691.1,2690.4,1.06186358]
[1645332095270,1.2087,2691.1,2690.5,0.536]
[1645332098216,1.80769647,2690.8,2690.5,0.536]
[1645332098616,0.93009,2690.8,2690.5,0.536]
[1645332099018,1.86024,2691.0,2690.5,0.536]
[1645332099216,1.2087,2691.1,2690.5,0.536]
[1645332099615,1.08602182,2691.0,2690.5,0.536]
[1645332102473,2.13869,2691.1,2690.5,0.536]
[1645332103074,2.13869,2691.1,2690.2,15.266]
[1645332103672,3.30872785,2691.1,2690.2,4.036]
[1645332104475,3.30872785,2691.1,2690.0,2.7711]
[1645332104476,0.93015,2690.7,2690.0,2.7711]
[1645332104675,0.93015,2690.7,2689.9,1.68710134]
[1645332104877,0.93015,2690.7,2689.9,1.68537405]
[1645332105076,0.93015,2690.7,2689.9,1.68710134]
[1645332105320,0.78015,2690.7,2689.9,1.68710134]
[1645332105520,0.83681533,2690.6,2689.9,1.68710134]
[1645332105722,0.93021,2690.4,2689.9,1.68710134]
[1645332106122,1.23021,2690.4,2689.9,1.68537405]
[1645332106320,2.23021,2690.4,2689.9,1.68537405]
[1645332106532,1.93021,2690.4,2689.9,1.68718326]
[1645332107323,1.93021,2690.4,2689.9,1.68537405]
[1645332107520,1.93021,2690.4,2689.9,1.68718326]
[1645332108020,1.0999435,2690.1,2689.9,1.68718326]
[1645332108421,1.0999435,2690.1,2689.9,1.68537405]
[1645332108823,1.0999435,2690.1,2689.9,1.68718326]
[1645332109771,0.93031,2690.2,2689.9,1.68537405]
[1645332109971,0.93031,2690.2,2689.9,1.68716483]
[1645332110971,0.93031,2690.2,2689.9,1.68537405]
[1645332111171,0.93031,2690.2,2689.9,1.68716483]
[1645332112171,0.93031,2690.2,2689.9,1.68537405]
[1645332112371,0.93031,2690.2,2689.9,1.68716483]
[1645332113227,1.86062,2690.5,2689.9,1.68537405]
[1645332113423,2.2258,2690.7,2689.9,1.68537405]
[1645332113424,1.0,2690.6,2689.9,1.68537405]
[1645332113622,1.0,2690.6,2690.0,1.57995291]
[1645332113822,2.2258,2690.7,2690.1,1.57994075]
[1645332114023,1.2258,2690.7,2690.0,3.5]
[1645332114223,1.2258,2690.7,2690.1,1.57994158]
[1645332115024,2.1559,2690.7,2690.1,1.57994158]
[1645332115224,2.1559,2690.7,2690.2,3.5]
[1645332115426,1.2258,2690.7,2690.3,1.57994158]
[1645332115630,13.4269,2691.2,2690.4,3.5]
[1645332115828,1.1723,2691.8,2690.5,1.57994158]
[1645332116028,0.93301685,2691.5,2690.6,3.5]
[1645332116227,0.93301685,2691.5,2690.7,1.57994158]
[1645332116482,1.95314086,2691.5,2690.7,1.57994158]
[1645332116683,2.95314086,2691.5,2690.7,5.07994158]
[1645332116987,2.94997401,2691.5,2690.7,3.5]
[1645332117182,2.94997401,2691.5,2690.6,0.98710443]
[1645332117183,2.95314121,2691.5,2690.6,0.98710443]
[1645332117386,2.95314121,2691.5,2690.7,3.5]
[1645332117583,2.95314121,2691.5,2690.6,0.98710443]
[1645332117783,2.95314121,2691.5,2690.4,0.536]
[1645332117985,0.08611616,2691.4,2690.3,0.1857]
[1645332118285,0.08611616,2691.4,2690.1,6.2538]
[1645332118286,0.93012,2691.1,2690.1,6.2538]
[1645332118584,1.23012,2691.1,2690.2,1.57982422]
[1645332118784,1.3,2691.1,2690.2,1.57982422]
[1645332118983,0.3,2691.1,2690.2,1.57982422]
[1645332119183,1.0,2691.1,2690.2,2.61115466]
[1645332119383,2.16023,2691.2,2690.2,2.61115466]
[1645332119384,0.93012,2690.9,2690.2,2.61115466]
[1645332119587,0.93012,2690.9,2690.2,1.57982422]
[1645332120622,0.93012,2690.9,2690.2,5.07982422]
[1645332120821,0.93012,2690.9,2690.3,1.57982422]
[1645332124268,0.93012,2690.9,2690.1,2.7538]
[1645332124569,1.86055,2690.7,2690.2,1.57989492]
[1645332124774,1.86055,2690.7,2689.9,1.68716821]
[1645332124971,1.86055,2690.7,2690.0,1.58001558]
[1645332125167,1.04189624,2690.4,2690.0,1.58001558]
[1645332126368,1.04189624,2690.4,2689.9,1.68716821]
[1645332126566,1.04189624,2690.4,2690.0,1.58001922]
[1645332126968,0.93027,2690.3,2690.0,1.58001922]
[1645332127272,0.93027,2690.3,2689.9,1.68716821]
[1645332127721,0.93027,2690.3,2689.9,1.68537405]
[1645332127923,0.93027,2690.3,2689.9,1.68716822]
[1645332128229,0.93027,2690.3,2689.9,1.68583781]
[1645332128825,0.93027,2690.3,2690.0,1.5800247]
[1645332130625,0.93027,2690.3,2689.9,1.68583781]
[1645332131024,0.93027,2690.3,2690.0,1.58001499]
[1645332131473,0.93027,2690.3,2689.9,1.68404364]
[1645332131671,0.93027,2690.3,2689.9,1.6858378]
[1645332132071,0.93027,2690.3,2690.0,1.58001972]
[1645332133272,0.93027,2690.3,2690.0,5.08001972]
[1645332133474,1.0,2690.6,2690.1,1.58001972]
[1645332133674,1.0,2690.8,2690.1,1.58001972]
[1645332133879,1.2184,2691.0,2690.1,1.58001972]
[1645332133880,1.2184,2691.0,2690.2,14.73]
[1645332134077,1.2184,2691.0,2690.3,1.58001972]
[1645332134275,1.2184,2691.0,2690.4,3.5]
[1645332134475,2.14839,2691.0,2690.5,1.58001972]
[1645332136321,2.14839,2691.0,2690.0,3.6857]
[1645332136523,3.14839,2691.0,2690.1,1.57982702]
[1645332136720,4.07861,2691.0,2690.1,1.57982702]
[1645332136920,0.93027,2690.8,2690.1,1.57982702]
[1645332137420,0.9302855,2690.7,2690.1,1.57982702]
[1645332137624,3.14862,2691.0,2690.1,1.57982702]
[1645332138825,4.0288369,2691.0,2690.1,1.57982702]
[1645332139074,0.93026,2690.5,2690.1,1.57982702]
[1645332139274,2.2184,2691.0,2690.1,1.57982702]
[1645332139775,2.2184,2691.0,2690.0,0.6]
[1645332140077,2.2184,2691.0,2690.1,1.57985273]
[1645332140280,1.2184,2691.0,2690.1,1.57985273]
[1645332140577,2.2184,2691.0,2690.1,1.57985273]
[1645332140775,0.93008,2690.8,2690.1,1.57985273]
[1645332142175,0.93008,2690.8,2690.1,5.07985273]
[1645332142374,0.93008,2690.8,2690.2,1.57985273]
[1645332142574,0.93008,2690.8,2690.1,3.5]
[1645332143024,0.93066515,2690.6,2689.9,1.87194473]
[1645332143226,0.9302,2690.5,2689.9,1.87194473]
[1645332143426,0.9302,2690.5,2689.9,1.86974364]
[1645332143624,2.2302,2690.5,2689.9,1.68624473]
[1645332144621,4.09128,2690.5,2689.9,1.68404364]
[1645332144821,0.9304099,2690.4,2689.9,1.68404364]
[1645332145023,0.93057,2690.2,2689.9,1.68404364]
[1645332145224,1.86114,2690.2,2689.9,1.68404364]
[1645332145431,1.86114,2690.2,2689.3,0.00290756]
[1645332145432,51.3,2690.1,2689.3,0.00290756]
[1645332145627,51.3,2690.1,2689.1,0.00290756]
[1645332145826,1.0,2690.0,2688.9,0.00290756]
[1645332146026,6.62211616,2690.0,2688.7,0.00290756]
[1645332146227,1.14058925,2689.1,2688.7,0.00290756]
[1645332146475,7.66781616,2689.9,2688.7,3.5]
[1645332146675,7.66781616,2689.9,2688.8,0.00290756]
[1645332146676,7.5817,2689.9,2688.8,0.00290756]
[1645332146975,2.1597,2689.8,2688.6,0.1859]
[1645332147176,5.6597,2689.8,2688.6,0.00290756]
[1645332147375,5.6597,2689.8,2688.4,3.58305724]
[1645332147376,0.9306672,2689.7,2689.2,0.00219612]
[1645332147677,0.9307,2689.3,2689.2,0.00219612]
[1645332148180,0.9307,2689.3,2688.6,0.00290756]
[1645332148378,0.9307,2689.3,2689.1,0.0021962]
[1645332149377,0.9307,2689.3,2688.6,0.00290756]
[1645332149777,0.9307,2689.3,2689.1,0.00219624]
[1645332150625,0.9307,2689.3,2688.6,0.00290756]
[1645332151024,0.9307,2689.3,2689.1,0.00219624]
[1645332151825,0.9307,2689.3,2688.6,0.00290756]
[1645332152227,0.9307,2689.3,2689.1,0.00219624]
[1645332153029,0.9307,2689.3,2688.6,0.00290756]
[1645332153231,0.9307,2689.3,2689.1,0.00219624]
[1645332153436,1.86118,2689.6,2689.1,0.00219624]
[1645332154271,1.86118,2689.6,2688.6,0.00290756]
[1645332154472,4.6597,2689.8,2688.8,0.00878578]
[1645332154473,0.93073,2689.2,2688.8,0.00878578]
[1645332155475,0.93073,2689.2,2688.6,0.00290756]
[1645332155674,0.93073,2689.2,2688.9,0.0021964]
[1645332156477,0.93052,2689.5,2688.9,0.0021964]
[1645332156777,1.0,2689.7,2689.3,1.68568856]
[1645332157376,1.1597,2689.8,2689.3,1.68568856]
[1645332158321,1.1597,2689.8,2689.4,0.00219595]
[1645332158524,1.99895997,2690.2,2689.4,0.00219595]
[1645332159124,1.99895997,2690.2,2689.3,1.68859612]
[1645332159323,1.99895997,2690.2,2689.7,0.00195422]
[1645332159523,0.85511028,2690.1,2689.7,0.00195422]
[1645332159924,0.93035,2690.0,2689.7,0.00195422]
[1645332160326,0.93035,2690.0,2689.3,1.68859612]
[1645332160533,0.93035,2690.0,2689.7,0.00195418]
[1645332160929,4.73035,2690.0,2689.3,1.68859612]
[1645332161127,1.86155,2689.8,2689.3,1.68859612]
[1645332161484,1.86155,2689.8,2689.3,1.68568856]
[1645332161485,1.17649606,2689.4,2689.3,1.68568856]
[1645332162676,2.17649606,2689.4,2689.3,1.68568856]
[1645332163079,3.10719606,2689.4,2689.3,1.68568856]
[1645332167929,2.10719606,2689.4,2689.3,1.68568856]
[1645332168981,3.10719606,2689.4,2689.3,1.68568856]
[1645332169884,3.10719606,2689.4,2689.3,1.13946041]
[1645332173737,2.10719606,2689.4,2689.3,1.13946041]
[1645332175239,3.10719606,2689.4,2689.3,1.13946041]
[1645332175441,3.10719606,2689.4,2689.2,0.00219123]
[1645332175641,3.5,2689.3,2689.2,0.00219123]
[1645332175840,4.5,2689.3,2688.5,0.00290756]
[1645332176042,1.8615703,2689.1,2688.5,0.00290756]
[1645332176477,1.03549636,2688.8,2688.5,0.00290756]
[1645332176681,1.03549636,2688.8,2688.2,0.00290756]
[1645332176879,1.03549636,2688.8,2688.3,0.1859]
[1645332177074,1.03549636,2688.8,2688.2,0.18880756]
[1645332177275,1.03549636,2688.8,2688.3,1.58079842]
[1645332177474,1.03549636,2688.8,2688.2,0.00290756]
[1645332177874,1.96620636,2688.8,2688.0,1.76666438]
[1645332178075,1.96620636,2688.8,2688.1,1.58367194]
[1645332178276,1.96620636,2688.8,2688.1,1.88367194]
[1645332178576,1.96620636,2688.8,2688.3,0.00218652]
[1645332178977,1.96620636,2688.8,2688.3,0.00509408]
[1645332179176,4.10620636,2688.8,2688.3,0.00218652]
[1645332179576,4.10620636,2688.8,2688.0,1.58084905]
[1645332179778,4.10620636,2688.8,2688.4,0.0021864]
[1645332180630,4.10620636,2688.8,2687.8,0.00290756]
[1645332180829,0.9310031,2688.6,2687.8,0.00290756]
[1645332181026,0.9310031,2688.6,2688.5,0.00218636]
[1645332181625,1.0,2688.7,2688.5,0.00218636]
[1645332181826,1.0,2688.7,2687.8,0.00290756]
[1645332182030,0.93092,2688.5,2687.8,0.00290756]
[1645332182227,0.93092,2688.5,2688.4,0.0021864]
[1645332183228,0.93092,2688.5,2688.1,1.58094334]
[1645332183428,0.93092,2688.5,2688.3,0.00218648]
[1645332184371,0.93092,2688.5,2687.7,0.00290756]
[1645332184576,0.93092,2688.5,2688.3,0.00218652]
[1645332184772,1.93092,2688.5,2688.3,0.00218652]
[1645332184972,2.79364,2688.3,2687.9,0.00874741]
[1645332185369,3.724896,2688.3,2687.9,0.00874741]
[1645332185570,0.93107,2688.2,2687.7,0.00290756]
[1645332185768,0.93107,2688.2,2687.6,1.58107577]
[1645332185974,0.93107,2688.2,2687.6,1.58398333]
[1645332186971,51.0,2688.1,2687.4,0.00262471]
[1645332187181,0.93136,2687.9,2687.5,0.00288097]
[1645332187375,0.93136,2687.9,2687.4,0.00262471]
[1645332187376,1.2171,2687.8,2687.4,0.00262471]
[1645332187570,1.5171,2687.8,2687.4,0.00262471]
[1645332187832,1.16965501,2687.1,2686.5,0.00288097]
[1645332188032,0.9315269,2687.0,2686.5,0.00288097]
[1645332188233,2.79459,2687.3,2687.0,0.75552937]
[1645332188234,3.92539,2687.3,2687.0,0.75552937]
[1645332188431,1.86306,2687.1,2687.0,0.75552937]
[1645332188636,2.0,2687.0,2686.5,0.00288097]
[1645332188833,2.0,2687.0,2686.3,0.00288097]
[1645332188834,3.0,2687.0,2686.3,0.00288097]
[1645332189033,4.65852,2686.9,2686.3,0.00288097]
[1645332189235,1.8634848,2686.8,2686.3,0.00288097]
[1645332189437,2.10439717,2686.8,2686.3,0.00288097]
[1645332189636,0.93166,2686.8,2686.3,0.00288097]
[1645332190235,0.93166,2686.8,2686.0,0.70233821]
[1645332190434,0.93166,2686.8,2686.1,0.00288097]
[1645332190842,1.2204,2687.2,2686.4,1.15380786]
[1645332190843,0.93131,2687.2,2686.4,1.15380786]
[1645332191039,8.7118,2687.7,2686.5,0.70233821]
[1645332191040,4.2274,2687.7,2686.5,0.70233821]
[1645332191241,4.2274,2687.7,2686.6,11.23288097]
[1645332191474,1.1728,2688.2,2686.7,0.00286743]
[1645332191475,2.1728,2688.2,2686.7,0.00286743]
[1645332191777,1.2046,2688.4,2687.6,0.83887698]
[1645332191976,3.25,2688.8,2687.7,4.03886743]
[1645332192176,14.2367,2689.3,2687.8,0.00286743]
[1645332192380,14.2367,2689.3,2687.9,0.536]
[1645332192573,14.2367,2689.3,2688.0,3.50286743]
[1645332192773,0.9309061,2689.0,2688.1,0.00286743]
[1645332192978,1.08975939,2688.5,2688.1,0.00286743]
[1645332193175,1.08975939,2688.5,2687.9,0.53886743]
[1645332193378,1.08975939,2688.5,2687.9,0.00286743]
[1645332193576,1.1369,2688.9,2687.9,0.00286743]
[1645332193777,1.1369,2688.9,2687.9,0.53886743]
[1645332193977,1.1369,2688.9,2688.0,3.5]
[1645332194178,7.4332,2689.4,2688.2,11.23]
[1645332194377,1.1291,2689.3,2688.3,0.00286743]
[1645332194575,1.1291,2689.3,2688.1,11.23]
[1645332194576,1.1291,2689.3,2688.2,3.5]
[1645332194780,1.1291,2689.3,2688.4,1.01553118]
[1645332194781,2.29612085,2689.3,2688.4,1.01553118]
[1645332194982,2.29612085,2689.3,2688.3,0.53886743]
[1645332195234,0.93063,2689.1,2688.3,0.53886743]
[1645332196325,0.93063,2689.1,2688.3,4.03886743]
[1645332197226,0.93063,2689.1,2688.3,0.53886743]
[1645332197429,0.93063,2689.1,2688.3,4.03886743]
[1645332198424,0.93063,2689.1,2688.3,0.53886743]
[1645332198624,0.93063,2689.1,2688.3,4.03886743]
[1645332199976,0.93063,2689.1,2688.3,15.26886743]
[1645332203320,0.93063,2689.1,2688.7,1.00283775]
[1645332203525,1.86136,2689.3,2688.8,3.5]
[1645332203725,0.9305,2689.4,2688.8,3.5]
[1645332203922,0.9305,2689.4,2688.9,0.536]
[1645332204125,9.83192,2689.7,2689.1,11.23]
[1645332204126,1.86092,2689.7,2689.1,11.23]
[1645332204327,0.00352513,2690.2,2689.2,15.266]
[1645332204724,0.00352513,2690.2,2689.8,12.15564335]
[1645332204928,7.32,2690.3,2690.0,11.23]
[1645332205227,0.01410309,2690.5,2690.2,11.23]
[1645332205427,0.01410309,2690.5,2690.4,11.23]
[1645332205622,3.09e-06,2690.5,2690.4,12.4189]
[1645332205826,3.09e-06,2690.5,2690.4,23.4026]
[1645332206024,3.18871552,2692.0,2690.4,24.4026]
[1645332206224,3.18871552,2692.0,2690.9,11.23]
[1645332206481,1.1586,2692.3,2691.1,11.23]
[1645332206678,1.1586,2692.3,2691.3,11.23]
[1645332206979,1.1586,2692.3,2691.6,0.95685931]
[1645332207177,1.1586,2692.3,2691.7,0.536]
[1645332207379,1.43010978,2692.5,2691.7,0.536]
[1645332207578,1.43010978,2692.5,2691.4,0.536]
[1645332207579,0.88010978,2692.5,2691.4,0.536]
[1645332207988,0.92954,2692.3,2691.4,0.536]
[1645332208382,0.92954,2692.3,2691.6,0.84725928]
[1645332208580,0.003533,2692.0,2691.7,0.536]
[1645332209579,1.9938503,2692.7,2691.7,0.536]
[1645332209781,0.003533,2692.0,2691.7,0.536]
[1645332210422,0.003533,2692.0,2691.1,3.5]
[1645332210628,0.003533,2692.0,2691.0,11.23]
[1645332210822,0.929795,2692.1,2691.1,0.536]
[1645332211023,0.00353307,2691.7,2691.1,4.036]
[1645332211223,0.00353307,2691.7,2691.1,0.836]
[1645332211825,0.00353307,2691.7,2691.2,0.93796404]
[1645332212127,0.00353311,2691.5,2691.2,0.93796404]
[1645332213132,1.85958,2692.0,2691.2,0.93796404]
[1645332213324,0.00353312,2691.5,2691.2,0.93796404]
[1645332213527,0.5448,2693.8,2691.5,0.00706623]
[1645332213528,0.01413037,2691.9,2691.5,0.00706623]
[1645332213727,0.01413037,2691.9,2691.6,12.066]
[1645332214375,1.1585,2692.6,2691.6,1.136]
[1645332214875,1.1585,2692.6,2692.0,0.93470289]
[1645332214876,0.92946,2692.4,2692.0,0.93470289]
[1645332215074,0.92946,2692.4,2691.9,0.536]
[1645332215680,0.92946,2692.4,2691.5,0.00706623]
[1645332215681,1.8591258,2692.4,2691.5,0.00706623]
[1645332215878,0.9298,2692.1,2691.5,0.00706623]
[1645332216078,1.2298,2692.1,2691.5,0.00706623]
[1645332216276,0.08611616,2692.0,2691.5,0.00706623]
[1645332216675,2.5298,2692.1,2691.5,0.00706623]
[1645332216876,2.5298,2692.1,2690.2,6.1664]
[1645332216877,0.3675,2691.8,2690.2,6.1664]
[1645332217076,0.3675,2691.8,2690.6,0.00221233]
[1645332217077,0.93008,2691.5,2690.6,0.00221233]
[1645332217277,0.93015,2691.3,2690.6,0.00221233]
[1645332217734,1.0,2691.7,2690.6,0.00221233]
[1645332217926,1.2098,2691.8,2690.6,0.92979]
[1645332217927,2.2098,2691.8,2690.6,0.92979]
[1645332218125,2.2098,2691.8,2690.7,0.536]
[1645332218329,0.92977,2691.5,2690.7,0.836]
[1645332218526,0.92977,2691.5,2691.1,0.8756309]
[1645332218927,0.0035325,2691.6,2691.1,1.4116309]
[1645332219127,1.0,2691.7,2691.1,1.4116309]
[1645332219325,1.2098,2691.8,2691.1,1.7116309]
[1645332219526,0.00353287,2691.6,2691.1,2.0116309]
[1645332219725,0.00353287,2691.6,2691.1,1.4116309]
[1645332220127,0.00353287,2691.6,2691.1,1.7116309]
[1645332220327,2.79,2691.9,2691.1,2.0116309]
[1645332220726,0.00353293,2691.6,2691.1,2.0116309]
[1645332220931,0.92978,2691.5,2691.1,2.0116309]
[1645332221885,0.00353287,2691.6,2691.3,11.23]
[1645332222080,0.00353287,2691.6,2691.5,11.23]
[1645332222281,0.00353287,2691.6,2691.5,12.5517]
[1645332222682,0.92943,2692.6,2691.5,12.5517]
[1645332222883,0.92943,2692.6,2691.7,0.92944]
[1645332223108,0.92943,2692.6,2692.2,0.99942194]
[1645332223287,0.92943,2692.6,2692.2,1.53542194]
[1645332223489,0.92934,2692.9,2692.2,1.53542194]
[1645332224184,0.00353283,2692.7,2692.2,1.53542194]
[1645332224390,0.00353283,2692.7,2692.2,2.46468194]
[1645332224587,0.00353283,2692.7,2692.2,1.53542194]
[1645332225243,0.92934,2692.9,2692.2,1.53542194]
[1645332225440,0.00353285,2692.6,2692.2,1.53542194]
[1645332225653,0.00353285,2692.6,2692.2,2.13542194]
[1645332225839,0.00353285,2692.6,2692.2,14.36542194]
[1645332226044,0.00353285,2692.6,2692.2,13.36542194]
[1645332226443,0.92923,2693.2,2692.2,13.36542194]
[1645332226639,0.00353286,2692.5,2692.2,13.36542194]
[1645332226839,0.00353286,2692.5,2692.3,11.23]
[1645332227039,0.00353286,2692.5,2692.4,0.536]
[1645332227244,0.00353286,2692.5,2692.4,0.836]
[1645332227639,1.85864,2693.2,2692.4,0.536]
[1645332227842,0.00353285,2692.6,2692.4,0.836]
[1645332228038,0.00353285,2692.6,2692.4,0.536]
[1645332228240,0.00353285,2692.6,2692.4,0.836]
[1645332228842,0.92937,2692.8,2692.4,0.836]
[1645332229074,0.00353284,2692.6,2692.4,0.836]
[1645332229278,0.00353284,2692.6,2692.4,12.066]
[1645332229474,0.00353284,2692.6,2692.4,0.836]
[1645332230082,1.04877752,2693.0,2692.4,0.536]
[1645332230281,0.00353284,2692.6,2692.4,0.536]
[1645332230481,0.00353284,2692.6,2691.7,2.8553]
[1645332231084,1.85898,2692.7,2691.7,2.8553]
[1645332231283,0.9297,2692.5,2691.8,1.18738042]
[1645332231482,3.71851,2692.7,2691.8,1.18738042]
[1645332231483,0.93316292,2692.3,2691.8,1.18738042]
[1645332232579,0.00353295,2692.2,2691.8,1.18738042]
[1645332233328,0.92963,2692.0,2691.5,0.836]
[1645332233728,1.0,2692.3,2691.3,3.2135]
[1645332233729,0.24514168,2692.3,2691.3,3.2135]
[1645332233935,3.5,2692.6,2691.3,2.9135]
[1645332233936,0.00353296,2692.1,2691.3,2.9135]
[1645332234129,1.86292296,2692.1,2691.3,2.9135]
[1645332234330,1.19287015,2691.9,2691.0,0.96232192]
[1645332234526,1.86292296,2692.1,2691.1,1.57937307]
[1645332234729,0.92981,2691.7,2691.1,1.57937307]
[1645332235130,0.01413027,2692.0,2691.7,1.59705265]
[1645332235528,4.44298108,2692.6,2691.8,14.5]
[1645332235732,1.0,2692.5,2691.7,1.59705265]
[1645332235929,0.92978,2692.0,2691.7,1.59705265]
[1645332238578,0.92954,2692.3,2691.7,1.59705265]